[Event "44th Chess Olympiad Women 2022"]
[Site "Chennai"]
[Date "2022.07.31"]
[Round "3.21"]
[White "Vidic, Teja"]
[Black "Alvarez Gutierrez, Patricia"]
[Result "1-0"]
[WhiteElo "2099"]
[BlackElo "1715"]
[Annotator "NA"]
[PlyCount "97"]
[EventDate "2022.??.??"]
[TimeControl "60"]

1. e4 {[%emt 0:00:02]} c6 {[%emt 0:00:16]} 2. Nc3 {[%emt 0:00:16]} d5 {[%emt 0:
00:00]} 3. Nf3 {[%emt 0:00:05]} Bg4 {[%emt 0:00:09]} 4. h3 {[%emt 0:00:04]}
Bxf3 {[%emt 0:00:08]} 5. Qxf3 {[%emt 0:00:06]} e6 {[%emt 0:00:09]} 6. Be2 {
[%emt 0:00:07]} Bc5 {[%emt 0:02:17]} 7. O-O {[%emt 0:01:58]} Nd7 {[%emt 0:00:
00]} 8. Qg3 {[%emt 0:05:28]} Bd4 {[%emt 0:09:19]} 9. exd5 {[%emt 0:04:42]} exd5
{[%emt 0:04:12]} 10. Nd1 {[%emt 0:02:16]} Ne7 {[%emt 0:02:04]} 11. c3 {[%emt 0:
00:00]} Be5 {[%emt 0:04:50]} 12. f4 {[%emt 0:03:46]} Bf6 {[%emt 0:00:00]} 13.
d4 {[%emt 0:00:14]} Nf5 {[%emt 0:03:17]} 14. Qf3 {[%emt 0:02:08]} h5 {[%emt 0:
00:00]} 15. Bd3 {[%emt 0:01:41]} Nd6 {[%emt 0:04:42]} 16. Nf2 {[%emt 0:09:58]}
Be7 {[%emt 0:12:14]} 17. Re1 {[%emt 0:06:44]} Nf6 {[%emt 0:07:11]} 18. a4 {
[%emt 0:00:17]} Qd7 {[%emt 0:05:11]} 19. b4 {[%emt 0:03:22]} h4 {[%emt 0:04:00]
} 20. f5 {[%emt 0:10:43]} Kf8 {[%emt 0:14:37]} 21. Bg5 {[%emt 0:01:53]} Re8 {
[%emt 0:01:15]} 22. Qf4 {[%emt 0:10:17]} Nfe4 {[%emt 0:03:10]} 23. Bxe4 {
[%emt 0:07:01]} Bxg5 {[%emt 0:03:44]} 24. Qxg5 {[%emt 0:00:04]} dxe4 {[%emt 0:
00:00]} 25. f6 {[%emt 0:01:24]} g6 {[%emt 0:02:21]} 26. Qf4 {[%emt 0:01:05]}
Qe6 {[%emt 0:03:55]} 27. Re3 {[%emt 0:00:35]} Nf5 {[%emt 0:02:50]} 28. Rxe4 {
[%emt 0:01:22]} Qxf6 {[%emt 0:00:44]} 29. Rxe8+ {[%emt 0:00:36]} Kxe8 {[%emt 0:
00:00]} 30. Qb8+ {[%emt 0:00:25]} Qd8 {[%emt 0:01:44]} 31. Re1+ {[%emt 0:00:46]
} Kd7 {[%emt 0:00:45]} 32. Qxb7+ {[%emt 0:00:28]} Qc7 {[%emt 0:00:16]} 33.
Qxc7+ {[%emt 0:00:49]} Kxc7 {[%emt 0:00:07]} 34. a5 {[%emt 0:02:37]} Kd8 {
[%emt 0:01:10]} 35. Nd3 {[%emt 0:00:43]} Re8 {[%emt 0:03:18]} 36. Rxe8+ {
[%emt 0:00:16]} Kxe8 {[%emt 0:00:19]} 37. Ne5 {[%emt 0:00:09]} Ng3 {[%emt 0:00:
00]} 38. Nxc6 {[%emt 0:02:02]} Ne2+ {[%emt 0:00:08]} 39. Kf2 {[%emt 0:00:07]}
Nxc3 {[%emt 0:00:19]} 40. Nxa7 {[%emt 0:04:02]} Kd7 {[%emt 0:00:21]} 41. b5 {
[%emt 0:31:38]} Kc7 {[%emt 0:30:39]} 42. b6+ {[%emt 0:00:17]} Kb7 {[%emt 0:00:
00]} 43. Ke3 {[%emt 0:00:22]} Nd5+ {[%emt 0:01:55]} 44. Ke4 {[%emt 0:00:20]}
Ne7 {[%emt 0:00:21]} 45. d5 {[%emt 0:00:58]} f5+ {[%emt 0:00:00]} 46. Ke5 {
[%emt 0:00:00]} Nxd5 {[%emt 0:00:00]} 47. Kxd5 {[%emt 0:00:00]} g5 {[%emt 0:00:
00]} 48. Ke5 {[%emt 0:00:00]} f4 {[%emt 0:00:00]} 49. Ke4 {[%emt 0:00:00]} 1-0

[Event "44th Chess Olympiad Women 2022"]
[Site "Chennai"]
[Date "2022.07.31"]
[Round "3.22"]
[White "Borda Rodas, Anapaola S."]
[Black "Selkirk, Rebecca"]
[Result "1-0"]
[WhiteElo "2183"]
[BlackElo "1745"]
[Annotator "RC"]
[PlyCount "87"]
[EventDate "2022.??.??"]
[TimeControl "60"]

1. e4 {[%emt 0:00:03]} c5 {[%emt 0:00:07]} 2. Nf3 {[%emt 0:00:15]} e6 {[%emt 0:
00:00]} 3. g3 {[%emt 0:00:15]} a6 {[%emt 0:01:01]} 4. Bg2 {[%emt 0:01:18]} Nc6
{[%emt 0:01:26]} 5. O-O {[%emt 0:01:09]} Qc7 {[%emt 0:03:24]} 6. Re1 {[%emt 0:
00:00]} d6 {[%emt 0:00:54]} 7. c3 {[%emt 0:00:19]} e5 {[%emt 0:11:39]} 8. h3 {
[%emt 0:07:02]} g5 {[%emt 0:15:49]} 9. Nxg5 {[%emt 0:04:35]} h6 {[%emt 0:02:00]
} 10. Nf3 {[%emt 0:00:45]} Bg7 {[%emt 0:00:16]} 11. d3 {[%emt 0:02:56]} Nge7 {
[%emt 0:05:42]} 12. Be3 {[%emt 0:01:33]} f5 {[%emt 0:01:20]} 13. Nh4 {[%emt 0:
00:00]} Be6 {[%emt 0:06:05]} 14. exf5 {[%emt 0:07:07]} Nxf5 {[%emt 0:00:32]}
15. Nxf5 {[%emt 0:02:20]} Bxf5 {[%emt 0:00:07]} 16. Qh5+ {[%emt 0:04:35]} Qf7 {
[%emt 0:00:43]} 17. Qxf7+ {[%emt 0:00:24]} Kxf7 {[%emt 0:00:01]} 18. Rd1 {
[%emt 0:00:24]} Rac8 {[%emt 0:06:19]} 19. a4 {[%emt 0:05:25]} h5 {[%emt 0:00:
00]} 20. Na3 {[%emt 0:00:37]} Be6 {[%emt 0:01:01]} 21. Nc4 {[%emt 0:00:53]}
Rhd8 {[%emt 0:01:40]} 22. Nb6 {[%emt 0:03:55]} Rc7 {[%emt 0:02:04]} 23. Nd5 {
[%emt 0:01:03]} Rcc8 {[%emt 0:01:37]} 24. f4 {[%emt 0:05:19]} Rg8 {[%emt 0:00:
00]} 25. Rf1 {[%emt 0:06:28]} Ke8 {[%emt 0:03:31]} 26. f5 {[%emt 0:00:20]} Bf7
{[%emt 0:00:27]} 27. g4 {[%emt 0:00:54]} hxg4 {[%emt 0:02:36]} 28. hxg4 {
[%emt 0:00:04]} e4 {[%emt 0:00:12]} 29. Bxe4 {[%emt 0:01:06]} Ne5 {[%emt 0:00:
00]} 30. g5 {[%emt 0:00:39]} Nxd3 {[%emt 0:03:38]} 31. Nb6 {[%emt 0:04:36]} Rc6
{[%emt 0:01:05]} 32. Bxc6+ {[%emt 0:04:22]} bxc6 {[%emt 0:00:06]} 33. Rad1 {
[%emt 0:01:52]} c4 {[%emt 0:00:59]} 34. Rd2 {[%emt 0:01:01]} Be5 {[%emt 0:00:
00]} 35. Rg2 {[%emt 0:01:29]} Ke7 {[%emt 0:04:51]} 36. g6 {[%emt 0:11:26]} Be8
{[%emt 0:04:05]} 37. Bg5+ {[%emt 0:00:37]} Bf6 {[%emt 0:02:18]} 38. Re2+ {
[%emt 0:00:11]} Ne5 {[%emt 0:00:20]} 39. Nc8+ {[%emt 0:00:08]} Kd7 {[%emt 0:00:
00]} 40. Bxf6 {[%emt 0:00:10]} Ng4 {[%emt 0:00:53]} 41. Nb6+ {[%emt 0:30:44]}
Kc7 {[%emt 0:30:22]} 42. Bd4 {[%emt 0:00:07]} c5 {[%emt 0:00:11]} 43. Nd5+ {
[%emt 0:00:06]} Kb8 {[%emt 0:01:42]} 44. Ne7 {[%emt 0:00:13]} 1-0

[Event "44th Chess Olympiad Women 2022"]
[Site "Chennai"]
[Date "2022.07.31"]
[Round "3.22"]
[White "Bouah, Denise"]
[Black "Sarquis, Maria Belen"]
[Result "0-1"]
[WhiteElo "1736"]
[BlackElo "2072"]
[Annotator "NA"]
[PlyCount "80"]
[EventDate "2022.??.??"]
[TimeControl "60"]

1. e4 {[%emt 0:00:03]} e5 {[%emt 0:00:05]} 2. Nf3 {[%emt 0:00:04]} Nc6 {
[%emt 0:00:05]} 3. Bb5 {[%emt 0:00:04]} a6 {[%emt 0:00:05]} 4. Ba4 {[%emt 0:00:
00]} Nf6 {[%emt 0:00:08]} 5. d3 {[%emt 0:00:04]} d6 {[%emt 0:00:22]} 6. c3 {
[%emt 0:00:07]} g6 {[%emt 0:00:09]} 7. Nbd2 {[%emt 0:00:36]} Bg7 {[%emt 0:00:
00]} 8. O-O {[%emt 0:00:15]} O-O {[%emt 0:00:30]} 9. Re1 {[%emt 0:00:35]} Bd7 {
[%emt 0:00:14]} 10. Nf1 {[%emt 0:01:13]} Qe8 {[%emt 0:00:10]} 11. Bc2 {[%emt 0:
00:00]} Kh8 {[%emt 0:01:03]} 12. Ng3 {[%emt 0:10:23]} Ng8 {[%emt 0:00:17]} 13.
d4 {[%emt 0:15:02]} Bg4 {[%emt 0:00:19]} 14. d5 {[%emt 0:07:09]} Nce7 {[%emt 0:
00:00]} 15. h3 {[%emt 0:00:45]} Bd7 {[%emt 0:00:11]} 16. Nh2 {[%emt 0:09:18]}
f5 {[%emt 0:01:48]} 17. exf5 {[%emt 0:01:18]} Nxf5 {[%emt 0:03:52]} 18. Ne4 {
[%emt 0:01:34]} Nf6 {[%emt 0:08:36]} 19. Ng4 {[%emt 0:12:47]} Nxe4 {[%emt 0:00:
00]} 20. Bxe4 {[%emt 0:00:29]} Qf7 {[%emt 0:01:01]} 21. Qc2 {[%emt 0:07:49]} c6
{[%emt 0:05:46]} 22. Rd1 {[%emt 0:05:23]} c5 {[%emt 0:09:07]} 23. Ne3 {[%emt 0:
00:00]} b5 {[%emt 0:00:12]} 24. Qe2 {[%emt 0:06:43]} a5 {[%emt 0:02:45]} 25. b3
{[%emt 0:01:31]} a4 {[%emt 0:00:45]} 26. Rb1 {[%emt 0:01:47]} b4 {[%emt 0:00:
00]} 27. Bxf5 {[%emt 0:00:18]} Bxf5 {[%emt 0:14:53]} 28. Nxf5 {[%emt 0:00:05]}
Qxf5 {[%emt 0:00:05]} 29. Rb2 {[%emt 0:00:24]} bxc3 {[%emt 0:01:11]} 30. Rc2 {
[%emt 0:00:07]} axb3 {[%emt 0:01:17]} 31. axb3 {[%emt 0:01:59]} e4 {[%emt 0:00:
00]} 32. Re1 {[%emt 0:01:07]} Qxd5 {[%emt 0:04:05]} 33. Qxe4 {[%emt 0:01:37]}
Qxe4 {[%emt 0:01:15]} 34. Rxe4 {[%emt 0:00:05]} d5 {[%emt 0:00:26]} 35. Re7 {
[%emt 0:00:45]} d4 {[%emt 0:00:39]} 36. Rxg7 {[%emt 0:03:13]} Kxg7 {[%emt 0:00:
00]} 37. Kf1 {[%emt 0:00:57]} Rfe8 {[%emt 0:00:17]} 38. f3 {[%emt 0:00:49]} Ra1
{[%emt 0:01:56]} 39. Kf2 {[%emt 0:00:14]} Rb1 {[%emt 0:00:19]} 40. Ba3 {
[%emt 0:00:13]} d3 {[%emt 0:01:31]} 0-1

[Event "44th Chess Olympiad Women 2022"]
[Site "Chennai"]
[Date "2022.07.31"]
[Round "3.22"]
[White "Van Zyl, Charlize"]
[Black "Campos, Maria Jose"]
[Result "0-1"]
[WhiteElo "1704"]
[BlackElo "2185"]
[Annotator "RC"]
[PlyCount "118"]
[EventDate "2022.??.??"]
[TimeControl "60"]

1. d4 {[%emt 0:00:04]} Nf6 {[%emt 0:00:32]} 2. Nf3 {[%emt 0:00:19]} e6 {
[%emt 0:00:29]} 3. g3 {[%emt 0:00:18]} b5 {[%emt 0:01:52]} 4. Bg2 {[%emt 0:00:
00]} Bb7 {[%emt 0:00:27]} 5. O-O {[%emt 0:00:42]} c5 {[%emt 0:02:58]} 6. a4 {
[%emt 0:04:36]} a6 {[%emt 0:04:34]} 7. axb5 {[%emt 0:04:22]} axb5 {[%emt 0:00:
00]} 8. Rxa8 {[%emt 0:00:09]} Bxa8 {[%emt 0:00:08]} 9. dxc5 {[%emt 0:00:29]}
Bxc5 {[%emt 0:01:41]} 10. Nc3 {[%emt 0:00:24]} Qb6 {[%emt 0:02:05]} 11. Qd3 {
[%emt 0:03:58]} Ng4 {[%emt 0:02:58]} 12. e3 {[%emt 0:00:25]} Bxf3 {[%emt 0:00:
00]} 13. Bxf3 {[%emt 0:00:05]} Ne5 {[%emt 0:00:07]} 14. Qe2 {[%emt 0:00:09]}
Nxf3+ {[%emt 0:01:06]} 15. Qxf3 {[%emt 0:00:04]} O-O {[%emt 0:03:07]} 16. e4 {
[%emt 0:11:31]} Nc6 {[%emt 0:01:17]} 17. Qd3 {[%emt 0:01:07]} Rb8 {[%emt 0:00:
00]} 18. Bf4 {[%emt 0:08:21]} Rb7 {[%emt 0:00:54]} 19. h4 {[%emt 0:05:17]} f6 {
[%emt 0:11:26]} 20. Kg2 {[%emt 0:06:25]} Qa5 {[%emt 0:03:40]} 21. h5 {[%emt 0:
00:00]} b4 {[%emt 0:07:21]} 22. Ne2 {[%emt 0:00:13]} Bf8 {[%emt 0:04:17]} 23.
h6 {[%emt 0:08:06]} g5 {[%emt 0:02:54]} 24. Bd6 {[%emt 0:00:25]} Ne5 {[%emt 0:
00:00]} 25. Bxe5 {[%emt 0:02:51]} Qxe5 {[%emt 0:00:27]} 26. f4 {[%emt 0:03:15]}
Qb5 {[%emt 0:02:44]} 27. Qf3 {[%emt 0:01:24]} Rc7 {[%emt 0:04:20]} 28. c3 {
[%emt 0:03:40]} bxc3 {[%emt 0:00:29]} 29. bxc3 {[%emt 0:00:06]} Bxh6 {[%emt 0:
00:00]} 30. Qh5 {[%emt 0:06:41]} Qd3 {[%emt 0:11:03]} 31. Kf2 {[%emt 0:02:55]}
Bf8 {[%emt 0:01:24]} 32. fxg5 {[%emt 0:02:52]} Rc5 {[%emt 0:01:55]} 33. Qf3 {
[%emt 0:01:49]} Qxf3+ {[%emt 0:00:15]} 34. Kxf3 {[%emt 0:00:05]} Rxg5 {[%emt 0:
00:00]} 35. Rd1 {[%emt 0:00:12]} d6 {[%emt 0:00:20]} 36. Nd4 {[%emt 0:01:12]}
Kf7 {[%emt 0:00:33]} 37. Ra1 {[%emt 0:00:18]} Rc5 {[%emt 0:00:48]} 38. Ra7+ {
[%emt 0:00:39]} Be7 {[%emt 0:00:15]} 39. Ne2 {[%emt 0:03:09]} h5 {[%emt 0:00:
00]} 40. Rb7 {[%emt 0:02:59]} e5 {[%emt 0:02:59]} 41. Ke3 {[%emt 0:32:28]} Ke6
{[%emt 0:32:02]} 42. Kd3 {[%emt 0:01:21]} d5 {[%emt 0:01:22]} 43. Rb1 {[%emt 0:
00:00]} dxe4+ {[%emt 0:00:00]} 44. Kxe4 {[%emt 0:00:00]} f5+ {[%emt 0:00:00]}
45. Kf3 {[%emt 0:00:00]} Kf6 {[%emt 0:00:00]} 46. Rb8 {[%emt 0:00:00]} Rd5 {
[%emt 0:00:00]} 47. Rh8 {[%emt 0:00:00]} Rd3+ {[%emt 0:00:00]} 48. Kg2 {
[%emt 0:00:00]} Rd2 {[%emt 0:00:00]} 49. Kf2 {[%emt 0:00:00]} Rd1 {[%emt 0:00:
00]} 50. Rxh5 {[%emt 0:00:00]} Bc5+ {[%emt 0:00:00]} 51. Kg2 {[%emt 0:00:00]}
Re1 {[%emt 0:00:00]} 52. Nd4 {[%emt 0:00:00]} exd4 {[%emt 0:00:00]} 53. cxd4 {
[%emt 0:00:00]} Bxd4 {[%emt 0:00:00]} 54. Kf3 {[%emt 0:00:00]} Rf1+ {[%emt 0:
00:00]} 55. Kg2 {[%emt 0:00:36]} Rf2+ {[%emt 0:00:00]} 56. Kh3 {[%emt 0:01:44]}
Ra2 {[%emt 0:00:00]} 57. g4 {[%emt 0:01:47]} Ra3+ {[%emt 0:00:00]} 58. Kg2 {
[%emt 0:00:05]} fxg4 {[%emt 0:00:00]} 59. Rb5 {[%emt 0:00:35]} Be5 {[%emt 0:00:
00]} 0-1

[Event "44th Chess Olympiad Women 2022"]
[Site "Chennai"]
[Date "2022.07.31"]
[Round "3.22"]
[White "Zuriel, Marisa"]
[Black "February, Jesse Nikki"]
[Result "1-0"]
[WhiteElo "2174"]
[BlackElo "1872"]
[Annotator "RC"]
[PlyCount "99"]
[EventDate "2022.??.??"]
[TimeControl "60"]

1. e4 {[%emt 0:00:04]} e6 {[%emt 0:00:14]} 2. d4 {[%emt 0:00:12]} d5 {[%emt 0:
00:00]} 3. Nc3 {[%emt 0:00:11]} Nf6 {[%emt 0:01:07]} 4. Bg5 {[%emt 0:00:27]}
Be7 {[%emt 0:00:31]} 5. e5 {[%emt 0:00:14]} Nfd7 {[%emt 0:00:08]} 6. Bxe7 {
[%emt 0:00:10]} Qxe7 {[%emt 0:00:08]} 7. f4 {[%emt 0:00:19]} a6 {[%emt 0:00:09]
} 8. Nf3 {[%emt 0:00:13]} c5 {[%emt 0:00:42]} 9. Qd2 {[%emt 0:00:49]} Nc6 {
[%emt 0:00:34]} 10. dxc5 {[%emt 0:00:31]} Qxc5 {[%emt 0:03:18]} 11. Bd3 {
[%emt 0:00:18]} b5 {[%emt 0:01:21]} 12. Ne2 {[%emt 0:01:21]} Bb7 {[%emt 0:00:
00]} 13. c3 {[%emt 0:00:48]} b4 {[%emt 0:01:32]} 14. Ned4 {[%emt 0:01:37]} bxc3
{[%emt 0:02:08]} 15. bxc3 {[%emt 0:00:25]} Rc8 {[%emt 0:02:52]} 16. O-O {
[%emt 0:06:23]} Na5 {[%emt 0:02:44]} 17. Rac1 {[%emt 0:05:25]} Nc4 {[%emt 0:00:
00]} 18. Qf2 {[%emt 0:01:10]} Qe7 {[%emt 0:04:55]} 19. Qg3 {[%emt 0:09:53]} g6
{[%emt 0:04:30]} 20. Ng5 {[%emt 0:18:20]} Nc5 {[%emt 0:02:56]} 21. Bxc4 {
[%emt 0:00:40]} dxc4 {[%emt 0:00:24]} 22. Qh3 {[%emt 0:07:46]} h6 {[%emt 0:00:
00]} 23. Rb1 {[%emt 0:03:44]} Bd5 {[%emt 0:02:41]} 24. Rb6 {[%emt 0:10:35]} Kf8
{[%emt 0:02:27]} 25. Ngf3 {[%emt 0:03:42]} Qc7 {[%emt 0:08:39]} 26. Rbb1 {
[%emt 0:02:51]} Be4 {[%emt 0:03:32]} 27. Rbd1 {[%emt 0:08:59]} Rb8 {[%emt 0:00:
00]} 28. Nd2 {[%emt 0:10:02]} Bd3 {[%emt 0:05:28]} 29. Rfe1 {[%emt 0:00:11]}
Rb2 {[%emt 0:01:35]} 30. a3 {[%emt 0:00:07]} Kg7 {[%emt 0:01:06]} 31. Qh4 {
[%emt 0:02:51]} Rd8 {[%emt 0:06:09]} 32. Re3 {[%emt 0:00:15]} Rxd4 {[%emt 0:00:
00]} 33. cxd4 {[%emt 0:01:16]} c3 {[%emt 0:00:12]} 34. dxc5 {[%emt 0:00:49]}
Bc2 {[%emt 0:05:01]} 35. Rxc3 {[%emt 0:03:13]} Bxd1 {[%emt 0:00:07]} 36. Ne4 {
[%emt 0:00:39]} Qb7 {[%emt 0:04:22]} 37. Nf2 {[%emt 0:00:45]} Rb1 {[%emt 0:00:
00]} 38. h3 {[%emt 0:00:49]} Bf3+ {[%emt 0:01:42]} 39. Kh2 {[%emt 0:00:04]}
Bxg2 {[%emt 0:00:08]} 40. f5 {[%emt 0:01:41]} exf5 {[%emt 0:01:11]} 41. Qf6+ {
[%emt 0:30:39]} Kg8 {[%emt 0:30:42]} 42. Rd3 {[%emt 0:00:00]} Bd5 {[%emt 0:00:
00]} 43. Qd8+ {[%emt 0:00:00]} Kg7 {[%emt 0:00:00]} 44. Qxd5 {[%emt 0:00:00]}
Qb2 {[%emt 0:00:00]} 45. Qd4 {[%emt 0:00:00]} Qe2 {[%emt 0:00:00]} 46. e6+ {
[%emt 0:00:00]} Kh7 {[%emt 0:00:00]} 47. exf7 {[%emt 0:00:00]} Rb8 {[%emt 0:00:
00]} 48. Qe3 {[%emt 0:00:00]} Qf1 {[%emt 0:00:00]} 49. f8=Q {[%emt 0:00:00]}
Rxf8 {[%emt 0:00:00]} 50. Rd7+ {[%emt 0:00:00]} 1-0

[Event "44th Chess Olympiad Women 2022"]
[Site "Chennai"]
[Date "2022.07.31"]
[Round "3.23"]
[White "A-ALI, Sali Abbas Abdulzah"]
[Black "Onur, Cigdem"]
[Result "0-1"]
[WhiteElo "1864"]
[BlackElo "2000"]
[Annotator "NA"]
[PlyCount "80"]
[EventDate "2022.??.??"]
[TimeControl "60"]

1. e4 {[%emt 0:00:03]} c5 {[%emt 0:00:22]} 2. Nf3 {[%emt 0:00:08]} Nc6 {
[%emt 0:00:03]} 3. d4 {[%emt 0:00:11]} cxd4 {[%emt 0:00:03]} 4. Nxd4 {[%emt 0:
00:00]} Nf6 {[%emt 0:00:03]} 5. Nc3 {[%emt 0:00:09]} e5 {[%emt 0:00:03]} 6.
Ndb5 {[%emt 0:04:48]} d6 {[%emt 0:00:14]} 7. Bg5 {[%emt 0:01:31]} a6 {[%emt 0:
00:00]} 8. Bxf6 {[%emt 0:01:52]} gxf6 {[%emt 0:00:19]} 9. Na3 {[%emt 0:00:23]}
b5 {[%emt 0:17:37]} 10. Nd5 {[%emt 0:01:49]} f5 {[%emt 0:01:01]} 11. exf5 {
[%emt 0:05:32]} Bxf5 {[%emt 0:00:19]} 12. c3 {[%emt 0:02:06]} Bg7 {[%emt 0:00:
00]} 13. Bd3 {[%emt 0:10:10]} Be6 {[%emt 0:25:32]} 14. Be4 {[%emt 0:04:48]} O-O
{[%emt 0:11:12]} 15. Nb4 {[%emt 0:10:19]} Nxb4 {[%emt 0:01:46]} 16. Bxa8 {
[%emt 0:00:19]} Qxa8 {[%emt 0:00:42]} 17. cxb4 {[%emt 0:01:10]} Qxg2 {[%emt 0:
00:00]} 18. Rf1 {[%emt 0:00:35]} Bh3 {[%emt 0:01:52]} 19. Qe2 {[%emt 0:01:15]}
Qxf1+ {[%emt 0:03:20]} 20. Qxf1 {[%emt 0:00:06]} Bxf1 {[%emt 0:00:03]} 21. Kxf1
{[%emt 0:00:07]} Rc8 {[%emt 0:01:08]} 22. Rd1 {[%emt 0:01:24]} Rc6 {[%emt 0:00:
00]} 23. Ke2 {[%emt 0:02:15]} f5 {[%emt 0:02:33]} 24. Rd2 {[%emt 0:02:14]} Kf7
{[%emt 0:01:25]} 25. Rc2 {[%emt 0:01:47]} Rxc2+ {[%emt 0:00:23]} 26. Nxc2 {
[%emt 0:00:03]} Ke6 {[%emt 0:00:38]} 27. b3 {[%emt 0:00:41]} d5 {[%emt 0:01:59]
} 28. a4 {[%emt 0:01:45]} bxa4 {[%emt 0:07:58]} 29. bxa4 {[%emt 0:00:07]} d4 {
[%emt 0:00:09]} 30. Ne1 {[%emt 0:13:53]} Kd5 {[%emt 0:00:17]} 31. Nd3 {[%emt 0:
00:00]} Bf8 {[%emt 0:12:04]} 32. b5 {[%emt 0:03:23]} axb5 {[%emt 0:02:58]} 33.
axb5 {[%emt 0:04:08]} Bd6 {[%emt 0:00:11]} 34. Ne1 {[%emt 0:01:23]} e4 {
[%emt 0:03:05]} 35. h3 {[%emt 0:00:54]} Kc5 {[%emt 0:01:29]} 36. Ng2 {[%emt 0:
00:00]} f4 {[%emt 0:02:20]} 37. f3 {[%emt 0:02:08]} d3+ {[%emt 0:00:08]} 38.
Ke1 {[%emt 0:01:09]} e3 {[%emt 0:00:52]} 39. Nh4 {[%emt 0:01:28]} Kxb5 {
[%emt 0:00:12]} 40. Nf5 {[%emt 0:00:09]} Bb4+ {[%emt 0:00:08]} 0-1

[Event "44th Chess Olympiad Women 2022"]
[Site "Chennai"]
[Date "2022.07.31"]
[Round "3.23"]
[White "Al-Fayyadh, Zainab Asif Abdulah"]
[Black "Aydin, Gulenay"]
[Result "1/2-1/2"]
[WhiteElo "1749"]
[BlackElo "2100"]
[Annotator "NA RC"]
[PlyCount "120"]
[EventDate "2022.??.??"]
[TimeControl "60"]

1. e4 {[%emt 0:00:03]} c6 {[%emt 0:00:05]} 2. d4 {[%emt 0:00:04]} d5 {[%emt 0:
00:00]} 3. exd5 {[%emt 0:00:04]} cxd5 {[%emt 0:00:02]} 4. Bd3 {[%emt 0:00:07]}
Nc6 {[%emt 0:00:08]} 5. c3 {[%emt 0:00:06]} g6 {[%emt 0:01:44]} 6. Nf3 {
[%emt 0:00:24]} Bf5 {[%emt 0:01:23]} 7. O-O {[%emt 0:00:09]} Bxd3 {[%emt 0:00:
00]} 8. Qxd3 {[%emt 0:00:07]} Bg7 {[%emt 0:00:16]} 9. Bf4 {[%emt 0:00:22]} Nf6
{[%emt 0:00:47]} 10. Nbd2 {[%emt 0:00:43]} O-O {[%emt 0:01:10]} 11. Qb5 {
[%emt 0:03:13]} Qd7 {[%emt 0:11:39]} 12. Rfe1 {[%emt 0:12:09]} Rfe8 {[%emt 0:
00:00]} 13. Qb3 {[%emt 0:00:31]} Rad8 {[%emt 0:17:06]} 14. Ne5 {[%emt 0:01:59]}
Qc8 {[%emt 0:04:29]} 15. Ndf3 {[%emt 0:02:33]} Nh5 {[%emt 0:09:46]} 16. Nxc6 {
[%emt 0:02:47]} bxc6 {[%emt 0:06:58]} 17. Be3 {[%emt 0:05:18]} Bf6 {[%emt 0:00:
00]} 18. Ne5 {[%emt 0:09:27]} Bxe5 {[%emt 0:02:49]} 19. dxe5 {[%emt 0:00:27]}
Qd7 {[%emt 0:01:53]} 20. Qa4 {[%emt 0:02:56]} Ra8 {[%emt 0:03:36]} 21. Qh4 {
[%emt 0:02:15]} Ng7 {[%emt 0:00:52]} 22. g4 {[%emt 0:02:23]} Rab8 {[%emt 0:00:
00]} 23. b3 {[%emt 0:01:12]} Rbc8 {[%emt 0:11:32]} 24. b4 {[%emt 0:03:23]} h5 {
[%emt 0:02:02]} 25. h3 {[%emt 0:02:52]} a5 {[%emt 0:00:23]} 26. a3 {[%emt 0:00:
00]} axb4 {[%emt 0:00:12]} 27. axb4 {[%emt 0:00:08]} Ra8 {[%emt 0:00:47]} 28.
Bd4 {[%emt 0:01:23]} Rxa1 {[%emt 0:02:11]} 29. Rxa1 {[%emt 0:00:08]} Qe6 {
[%emt 0:01:23]} 30. f4 {[%emt 0:01:27]} Qd7 {[%emt 0:02:47]} 31. Ra7 {[%emt 0:
00:00]} Qc8 {[%emt 0:00:32]} 32. Rxe7 {[%emt 0:04:59]} Rxe7 {[%emt 0:00:06]}
33. Qxe7 {[%emt 0:00:04]} hxg4 {[%emt 0:00:31]} 34. Qf6 {[%emt 0:02:57]} Qe6 {
[%emt 0:01:43]} 35. Qd8+ {[%emt 0:00:54]} Ne8 {[%emt 0:00:32]} 36. h4 {[%emt 0:
00:00]} Kh7 {[%emt 0:00:36]} 37. Qg5 {[%emt 0:00:36]} Ng7 {[%emt 0:00:20]} 38.
Kf2 {[%emt 0:02:10]} Nh5 {[%emt 0:00:20]} 39. Bc5 {[%emt 0:01:46]} g3+ {
[%emt 0:00:13]} 40. Kg2 {[%emt 0:00:55]} d4 {[%emt 0:00:48]} 41. Bxd4 {[%emt 0:
00:00]} Qd5+ {[%emt 0:30:51]} 42. Kg1 {[%emt 0:03:04]} Qf3 {[%emt 0:00:00]} 43.
f5 {[%emt 0:00:00]} Qd1+ {[%emt 0:00:00]} 44. Kg2 {[%emt 0:00:00]} Qe2+ {
[%emt 0:00:00]} 45. Kg1 {[%emt 0:00:00]} Qh2+ {[%emt 0:00:00]} 46. Kf1 {
[%emt 0:00:00]} Qh1+ {[%emt 0:00:00]} 47. Ke2 {[%emt 0:00:00]} Qg2+ {[%emt 0:
00:00]} 48. Kd3 {[%emt 0:00:00]} Qf1+ {[%emt 0:00:00]} 49. Kd2 {[%emt 0:00:00]}
Qg2+ {[%emt 0:00:58]} 50. Ke1 {[%emt 0:00:00]} Qe4+ {[%emt 0:00:56]} 51. Kf1 {
[%emt 0:00:00]} Qf3+ {[%emt 0:01:20]} 52. Ke1 {[%emt 0:00:00]} Qe4+ {[%emt 0:
00:00]} 53. Kf1 {[%emt 0:00:00]} Qb1+ {[%emt 0:00:40]} 54. Ke2 {[%emt 0:00:00]}
Qc2+ {[%emt 0:00:24]} 55. Ke1 {[%emt 0:00:00]} Qe4+ {[%emt 0:00:27]} 56. Kf1 {
[%emt 0:00:00]} Qf3+ {[%emt 0:00:52]} 57. Ke1 {[%emt 0:00:00]} Qh1+ {[%emt 0:
00:00]} 58. Ke2 {[%emt 0:00:00]} Qg2+ {[%emt 0:00:25]} 59. Ke1 {[%emt 0:00:00]}
Qe4+ {[%emt 0:00:15]} 60. Kf1 {[%emt 0:00:00]} Qf3+ {[%emt 0:00:43]} 1/2-1/2

[Event "44th Chess Olympiad Women 2022"]
[Site "Chennai"]
[Date "2022.07.31"]
[Round "3.23"]
[White "Kocyigit, Buse Naz"]
[Black "Al-Fayyadh, Yamama Asif Abdula"]
[Result "1/2-1/2"]
[WhiteElo "1991"]
[BlackElo "1666"]
[Annotator "NA RC"]
[PlyCount "77"]
[EventDate "2022.??.??"]
[TimeControl "60"]

1. d4 {[%emt 0:00:04]} d5 {[%emt 0:00:05]} 2. Nf3 {[%emt 0:00:12]} Nf6 {
[%emt 0:00:14]} 3. c4 {[%emt 0:00:04]} e6 {[%emt 0:00:06]} 4. Nc3 {[%emt 0:00:
00]} Be7 {[%emt 0:00:16]} 5. Bg5 {[%emt 0:00:19]} O-O {[%emt 0:00:11]} 6. e3 {
[%emt 0:00:04]} b6 {[%emt 0:00:20]} 7. Rc1 {[%emt 0:01:19]} Bb7 {[%emt 0:00:33]
} 8. Bd3 {[%emt 0:00:38]} Nbd7 {[%emt 0:00:28]} 9. O-O {[%emt 0:02:01]} c5 {
[%emt 0:01:30]} 10. Qe2 {[%emt 0:01:11]} Rc8 {[%emt 0:00:32]} 11. cxd5 {
[%emt 0:01:33]} Nxd5 {[%emt 0:03:49]} 12. Bxe7 {[%emt 0:07:00]} Qxe7 {[%emt 0:
00:00]} 13. Ba6 {[%emt 0:01:24]} Bxa6 {[%emt 0:12:19]} 14. Qxa6 {[%emt 0:00:21]
} Nb4 {[%emt 0:03:19]} 15. Qa4 {[%emt 0:22:26]} Nd3 {[%emt 0:12:00]} 16. Rc2 {
[%emt 0:02:31]} cxd4 {[%emt 0:03:11]} 17. exd4 {[%emt 0:01:09]} Nf6 {[%emt 0:
00:00]} 18. Qb5 {[%emt 0:06:50]} Nb4 {[%emt 0:07:08]} 19. Re2 {[%emt 0:01:14]}
Rfd8 {[%emt 0:01:00]} 20. Rd1 {[%emt 0:02:11]} Nbd5 {[%emt 0:02:26]} 21. Ne4
Nxe4 {[%emt 0:02:43]} 22. Rxe4 {[%emt 0:07:22]} Rc2 {[%emt 0:03:35]} 23. a3 {
[%emt 0:08:01]} Qc7 {[%emt 0:12:28]} 24. Ne5 {[%emt 0:00:56]} Nf6 {[%emt 0:00:
00]} 25. Ree1 {[%emt 0:01:27]} Rc8 {[%emt 0:06:06]} 26. h3 {[%emt 0:01:26]} Nd5
{[%emt 0:00:46]} 27. Re4 {[%emt 0:04:59]} Qd8 {[%emt 0:03:05]} 28. Re2 {
[%emt 0:10:06]} Rxe2 {[%emt 0:04:42]} 29. Qxe2 {[%emt 0:00:02]} Qf6 {[%emt 0:
00:00]} 30. Qe4 {[%emt 0:04:02]} Qg5 {[%emt 0:03:29]} 31. Re1 {[%emt 0:01:27]}
Qd2 {[%emt 0:01:22]} 32. Re2 {[%emt 0:09:54]} Rc1+ {[%emt 0:01:14]} 33. Kh2 {
[%emt 0:00:21]} Qf4+ {[%emt 0:00:45]} 34. Qxf4 {[%emt 0:00:17]} Nxf4 {[%emt 0:
00:00]} 35. Rd2 {[%emt 0:00:23]} f6 {[%emt 0:01:00]} 36. Ng4 {[%emt 0:01:43]}
Kf7 {[%emt 0:02:35]} 37. Kg3 {[%emt 0:01:19]} Nd5 {[%emt 0:01:09]} 38. Kf3 {
[%emt 0:00:09]} Ke7 {[%emt 0:00:33]} 39. Ne3 {[%emt 0:01:00]} 1/2-1/2